[Event "25th Zadar Open 2018"]
[Site "Zadar"]
[Date "2018.12.17"]
[Round "4.16"]
[White "Biliskov, Vjekoslav"]
[Black "Kurayan, Ruslan"]
[Result "1-0"]
[ECO "E71"]
[WhiteElo "2313"]
[BlackElo "2391"]
[Annotator "NA"]
[PlyCount "81"]
[EventDate "2018.12.15"]
[EventType "swiss"]
[EventCountry "CRO"]
[SourceTitle "playchess.com"]
[Source "ChessBase"]
[SourceQuality "1"]
[TimeControl "40/5400+30:1800+30"]

1. d4 {[%emt 0:00:00]} Nf6 {[%emt 0:05:30]} 2. c4 {[%emt 0:00:00]} g6 {[%emt 0:00:30]} 3. Nc3 {[%emt 0:00:30]} Bg7 {[%emt 0:00:00]} 4. e4 {[%emt 0:00:30]} d6 {[%emt 0:00:00]} 5. h3 {[%emt 0:00:30]} O-O {[%emt 0:00:30]} 6. Bg5 {[%emt 0:00:30]} c5 {[%emt 0:20:30]} 7. d5 {[%emt 0:00:30]} b5 {[%emt 0:03:30]} 8. cxb5 {[%emt 0:00:30]} a6 {[%emt 0:00:30]} 9. a4 {[%emt 0:00:30]} Qa5 {[%emt 0:19:30]} 10. Bd2 {[%emt 0:01:30]} Qb4 {[%emt 0:00:30]} 11. Bd3 {[%emt 0:03:30]} Nfd7 {[%emt 0:05:30]} 12. Nf3 {[%emt 0:00:30]} c4 {[%emt 0:06:30]} 13. Bc2 {[%emt 0:00:30]} axb5 {[%emt 0:10:30]} 14. axb5 {[%emt 0:09:30]} Nb6 {[%emt 0:03:30]} 15. Rb1 {[%emt 0:28:30]} N8d7 {[%emt 0:04:07]} 16. O-O {[%emt 0:01:30]} Nc5 {[%emt 0:02:48]} 17. Bg5 {[%emt 0:08:30]} Re8 {[%emt 0:09:16]} 18. Nd4 {[%emt 0:03:30]} Bd7 {[%emt 0:02:42]} 19. Nc6 {[%emt 0:09:30]} Bxc6 {[%emt 0:00:30]} 20. bxc6 {[%emt 0:00:30]} Rab8 {[%emt 0:00:30]} 21. Be3 {[%emt 0:10:00]} Nb3 {[%emt 0:00:43]} 22. Bxb3 {[%emt 0:00:45]} cxb3 {[%emt 0:00:02]} 23. Bxb6 {[%emt 0:03:15]} Rxb6 {[%emt 0:00:26]} 24. Rc1 {[%emt 0:00:58]} e6 {[%emt 0:01:51]} 25. Qd3 {[%emt 0:01:29]} Bd4 {[%emt 0:01:46]} 26. Rfd1 {[%emt 0:02:25]} Bc5 {[%emt 0:00:43]} 27. Ra1 {[%emt 0:00:56]} Rbb8 {[%emt 0:00:04]} 28. g3 {[%emt 0:04:18]} Rbc8 {[%emt 0:00:48]} 29. Kg2 {[%emt 0:00:49]} exd5 {[%emt 0:00:29]} 30. Nxd5 {[%emt 0:00:41]} Qb8 {[%emt 0:00:18]} 31. Nf6+ {[%emt 0:00:12]} Kg7 {[%emt 0:00:06]} 32. Nxe8+ {[%emt 0:00:15]} Rxe8 {[%emt 0:00:01]} 33. Ra6 {[%emt 0:01:23]} h5 {[%emt 0:00:11]} 34. h4 {[%emt 0:00:32]} Qc8 {[%emt 0:00:09]} 35. Rda1 {[%emt 0:01:14]} Re6 {[%emt 0:00:35]} 36. Qc3+ {[%emt 0:01:01]} Rf6 {[%emt 0:00:04]} 37. f3 {[%emt 0:00:59]} Qe6 {[%emt 0:00:07]} 38. c7 {[%emt 0:01:03]} Qd7 {[%emt 0:00:21]} 39. e5 {[%emt 0:01:37]} Re6 {[%emt 0:00:04]} 40. Re1 {[%emt 0:00:00]} Kh7 {[%emt 0:00:00]} 41. exd6 {[%emt 0:03:38]} 1-0

[Event "25th Zadar Open 2018"]
[Site "Zadar"]
[Date "2018.12.17"]
[Round "4.17"]
[White "Ustianovich, Nazar"]
[Black "Dixit, Nikhil"]
[Result "1/2-1/2"]
[ECO "B15"]
[WhiteElo "2383"]
[BlackElo "2292"]
[Annotator "NA"]
[PlyCount "87"]
[EventDate "2018.12.15"]
[EventType "swiss"]
[EventCountry "CRO"]
[SourceTitle "playchess.com"]
[Source "ChessBase"]
[SourceQuality "1"]
[TimeControl "40/5400+30:1800+30"]

1. e4 {[%emt 0:03:30]} g6 {[%emt 0:00:30]} 2. d4 {[%emt 0:00:30]} Bg7 {[%emt 0:00:30]} 3. Nc3 {[%emt 0:00:30]} c6 {[%emt 0:00:00]} 4. f4 {[%emt 0:00:30]} d5 {[%emt 0:00:00]} 5. e5 {[%emt 0:00:30]} Nh6 {[%emt 0:00:30]} 6. Nf3 {[%emt 0:00:30]} f6 {[%emt 0:00:30]} 7. Bd3 {[%emt 0:01:30]} Bg4 {[%emt 0:06:30]} 8. h3 {[%emt 0:00:30]} Bxf3 {[%emt 0:00:30]} 9. Qxf3 {[%emt 0:00:30]} O-O {[%emt 0:00:00]} 10. h4 {[%emt 0:00:30]} fxe5 {[%emt 0:03:00]} 11. dxe5 {[%emt 0:00:30]} Nd7 {[%emt 0:00:30]} 12. Qg3 {[%emt 0:00:30]} Nc5 {[%emt 0:05:30]} 13. h5 {[%emt 0:00:30]} Nxd3+ {[%emt 0:01:30]} 14. cxd3 {[%emt 0:00:30]} Qe8 {[%emt 0:01:30]} 15. hxg6 {[%emt 0:01:30]} Qxg6 {[%emt 0:10:30]} 16. Ne2 {[%emt 0:00:30]} c5 {[%emt 0:06:30]} 17. Bd2 {[%emt 0:01:30]} Rac8 {[%emt 0:05:30]} 18. O-O-O {[%emt 0:06:30]} c4 {[%emt 0:07:30]} 19. d4 {[%emt 0:03:30]} Qd3 {[%emt 0:03:30]} 20. Qxd3 {[%emt 0:53:30]} cxd3+ {[%emt 0:00:30]} 21. Nc3 {[%emt 0:00:00]} e6 {[%emt 0:24:30]} 22. Rh3 {[%emt 0:08:41]} Ng4 {[%emt 0:01:30]} 23. Rf1 {[%emt 0:10:41]} Nxe5 {[%emt 0:11:57]} 24. dxe5 {[%emt 0:00:02]} d4 {[%emt 0:00:06]} 25. Rff3 {[%emt 0:01:33]} dxc3 {[%emt 0:00:21]} 26. bxc3 {[%emt 0:00:39]} Rfd8 {[%emt 0:01:05]} 27. Rxd3 {[%emt 0:00:06]} Rxd3 {[%emt 0:00:06]} 28. Rxd3 {[%emt 0:00:02]} Rc7 {[%emt 0:00:14]} 29. Be3 {[%emt 0:01:07]} b6 {[%emt 0:00:16]} 30. Kd2 {[%emt 0:00:22]} Kf7 {[%emt 0:00:52]} 31. g4 {[%emt 0:01:24]} Bf8 {[%emt 0:02:29]} 32. Bd4 {[%emt 0:00:35]} Kg6 {[%emt 0:01:00]} 33. Rf3 {[%emt 0:00:53]} Rf7 {[%emt 0:00:28]} 34. f5+ {[%emt 0:02:17]} Kg5 {[%emt 0:00:44]} 35. f6 {[%emt 0:00:35]} Kxg4 {[%emt 0:01:35]} 36. Ke2 {[%emt 0:00:01]} h5 {[%emt 0:01:00]} 37. Rf1 {[%emt 0:00:03]} h4 {[%emt 0:03:22]} 38. Rg1+ {[%emt 0:00:11]} Kf4 {[%emt 0:01:00]} 39. Rf1+ {[%emt 0:00:55]} Ke4 {[%emt 0:00:39]} 40. Rh1 {[%emt 0:00:00]} Rh7 {[%emt 0:00:00]} 41. Kf2 {[%emt 0:10:23]} b5 {[%emt 0:16:56]} 42. Re1+ {[%emt 0:02:30]} Kd3 {[%emt 0:01:35]} 43. Re3+ {[%emt 0:06:45]} Kc4 {[%emt 0:01:11]} 44. Re4 {[%emt 0:00:45]} 1/2-1/2

[Event "25th Zadar Open 2018"]
[Site "Zadar"]
[Date "2018.12.17"]
[Round "4.18"]
[White "Bilobrk, Franjo"]
[Black "Blagojevic, Tijana"]
[Result "1/2-1/2"]
[ECO "D52"]
[WhiteElo "2364"]
[BlackElo "2208"]
[Annotator "NA"]
[PlyCount "68"]
[EventDate "2018.12.15"]
[EventType "swiss"]
[EventCountry "CRO"]
[SourceTitle "playchess.com"]
[Source "ChessBase"]
[SourceQuality "1"]
[TimeControl "40/5400+30:1800+30"]

1. d4 {[%emt 0:00:30]} d5 {[%emt 0:02:30]} 2. c4 {[%emt 0:00:00]} c6 {[%emt 0:00:00]} 3. Nf3 {[%emt 0:00:00]} Nf6 {[%emt 0:00:00]} 4. Nc3 {[%emt 0:00:30]} e6 {[%emt 0:00:00]} 5. Bg5 {[%emt 0:00:00]} Nbd7 {[%emt 0:00:00]} 6. e3 {[%emt 0:00:00]} Qa5 {[%emt 0:00:30]} 7. cxd5 {[%emt 0:01:30]} Nxd5 {[%emt 0:00:30]} 8. Rc1 {[%emt 0:00:30]} h6 {[%emt 0:00:30]} 9. Bh4 {[%emt 0:00:30]} Nxc3 {[%emt 0:00:30]} 10. bxc3 {[%emt 0:00:30]} Ba3 {[%emt 0:00:30]} 11. Rc2 {[%emt 0:00:30]} b6 {[%emt 0:00:30]} 12. Be2 {[%emt 0:00:00]} Ba6 {[%emt 0:00:00]} 13. O-O {[%emt 0:00:00]} Bxe2 {[%emt 0:00:00]} 14. Qxe2 {[%emt 0:00:30]} O-O {[%emt 0:00:30]} 15. e4 {[%emt 0:00:30]} Qa4 {[%emt 0:04:30]} 16. Rd1 {[%emt 0:06:30]} Rfe8 {[%emt 0:01:30]} 17. c4 {[%emt 0:09:30]} Rac8 {[%emt 0:06:30]} 18. e5 {[%emt 0:04:30]} b5 {[%emt 0:00:30]} 19. c5 {[%emt 0:00:30]} Nf8 {[%emt 0:02:30]} 20. g4 {[%emt 0:15:30]} Rc7 {[%emt 0:02:30]} 21. Rc3 {[%emt 0:05:30]} Rd7 {[%emt 0:05:30]} 22. Rdd3 {[%emt 0:01:30]} Bb4 {[%emt 0:03:30]} 23. Rb3 {[%emt 0:00:30]} Ng6 {[%emt 0:05:30]} 24. Bg3 {[%emt 0:07:30]} Ne7 {[%emt 0:00:30]} 25. h4 {[%emt 0:00:30]} Nd5 {[%emt 0:06:30]} 26. h5 {[%emt 0:02:30]} Ba5 {[%emt 0:08:30]} 27. Ra3 {[%emt 0:11:30]} Qb4 {[%emt 0:00:30]} 28. Nd2 {[%emt 0:08:30]} Bd8 {[%emt 0:07:30]} 29. Ne4 {[%emt 0:04:30]} Be7 {[%emt 0:06:30]} 30. Qd1 {[%emt 0:09:33]} Qc4 {[%emt 0:05:30]} 31. Nd2 {[%emt 0:02:08]} Qb4 {[%emt 0:00:30]} 32. Ne4 {[%emt 0:01:00]} Qc4 {[%emt 0:00:30]} 33. Nd2 {[%emt 0:00:58]} Qb4 {[%emt 0:00:00]} 34. Ne4 {[%emt 0:00:56]} Qc4 {[%emt 0:02:00]} 1/2-1/2

[Event "25th Zadar Open 2018"]
[Site "Zadar"]
[Date "2018.12.17"]
[Round "4.19"]
[White "Bratkovic, Jakob"]
[Black "Mendonca, Leon Luke"]
[Result "1-0"]
[ECO "B96"]
[WhiteElo "2239"]
[BlackElo "2350"]
[Annotator "NA"]
[PlyCount "103"]
[EventDate "2018.12.15"]
[EventType "swiss"]
[EventCountry "CRO"]
[SourceTitle "playchess.com"]
[Source "ChessBase"]
[SourceQuality "1"]
[TimeControl "40/5400+30:1800+30"]

1. e4 {[%emt 0:02:30]} c5 {[%emt 0:00:30]} 2. Nf3 {[%emt 0:00:00]} d6 {[%emt 0:00:00]} 3. d4 {[%emt 0:00:00]} cxd4 {[%emt 0:00:00]} 4. Nxd4 {[%emt 0:00:30]} Nf6 {[%emt 0:00:00]} 5. Nc3 {[%emt 0:00:00]} a6 {[%emt 0:00:00]} 6. Bg5 {[%emt 0:01:00]} e6 {[%emt 0:00:30]} 7. f4 {[%emt 0:00:00]} h6 {[%emt 0:00:00]} 8. Bh4 {[%emt 0:00:00]} Qb6 {[%emt 0:00:00]} 9. a3 {[%emt 0:00:30]} Be7 {[%emt 0:00:00]} 10. Bf2 {[%emt 0:00:30]} Qc7 {[%emt 0:00:00]} 11. Qf3 {[%emt 0:00:30]} Nbd7 {[%emt 0:00:00]} 12. O-O-O {[%emt 0:01:30]} b5 {[%emt 0:00:00]} 13. g4 {[%emt 0:02:30]} Bb7 {[%emt 0:00:00]} 14. h4 {[%emt 0:02:30]} d5 {[%emt 0:00:00]} 15. e5 {[%emt 0:00:30]} Ne4 {[%emt 0:00:30]} 16. Be1 {[%emt 0:01:30]} Rc8 {[%emt 0:06:30]} 17. Rh3 {[%emt 0:11:30]} Ndc5 {[%emt 0:23:30]} 18. Qg2 {[%emt 0:15:30]} f6 {[%emt 0:16:30]} 19. Nxe4 {[%emt 0:14:30]} dxe4 {[%emt 0:01:30]} 20. Rc3 {[%emt 0:00:30]} fxe5 {[%emt 0:25:30]} 21. Nxe6 {[%emt 0:01:30]} Qb6 {[%emt 0:00:00]} 22. Nxg7+ {[%emt 0:06:30]} Kf7 {[%emt 0:00:00]} 23. Nf5 {[%emt 0:00:30]} Qe6 {[%emt 0:09:21]} 24. Nxe7 {[%emt 0:08:30]} Qa2 {[%emt 0:08:05]} 25. Nxc8 {[%emt 0:00:30]} Rxc8 {[%emt 0:01:06]} 26. Qf2 {[%emt 0:08:30]} e3 {[%emt 0:05:35]} 27. Qxe3 {[%emt 0:00:30]} Ne4 {[%emt 0:00:23]} 28. Qxe4 {[%emt 0:04:02]} Bxe4 {[%emt 0:00:02]} 29. Rxc8 {[%emt 0:00:10]} Bf3 {[%emt 0:01:27]} 30. Rc7+ {[%emt 0:04:51]} Ke8 {[%emt 0:00:06]} 31. Rdd7 {[%emt 0:00:16]} Qa1+ {[%emt 0:01:12]} 32. Kd2 {[%emt 0:00:05]} Qd1+ {[%emt 0:02:24]} 33. Ke3 {[%emt 0:00:08]} Qxe1+ {[%emt 0:00:03]} 34. Kxf3 {[%emt 0:00:03]} e4+ {[%emt 0:01:20]} 35. Kg2 {[%emt 0:00:34]} Qe3 {[%emt 0:00:01]} 36. Rh7 {[%emt 0:05:25]} Qf3+ {[%emt 0:00:23]} 37. Kg1 {[%emt 0:00:11]} Qg3+ {[%emt 0:00:48]} 38. Kh1 {[%emt 0:00:05]} Qxh4+ {[%emt 0:00:11]} 39. Kg2 {[%emt 0:00:07]} Qxg4+ {[%emt 0:00:19]} 40. Kf2 {[%emt 0:00:00]} Qxf4+ {[%emt 0:00:00]} 41. Ke2 {[%emt 0:05:03]} Qf3+ {[%emt 0:06:44]} 42. Ke1 {[%emt 0:00:30]} Qg3+ {[%emt 0:01:30]} 43. Kd1 {[%emt 0:00:30]} Qg4+ {[%emt 0:03:30]} 44. Be2 {[%emt 0:04:30]} Qg1+ {[%emt 0:00:30]} 45. Kd2 {[%emt 0:00:00]} Qg5+ {[%emt 0:01:30]} 46. Kc3 {[%emt 0:01:00]} Kd8 {[%emt 0:03:48]} 47. Ra7 {[%emt 0:01:30]} Qe3+ {[%emt 0:00:50]} 48. Kb4 {[%emt 0:00:30]} Qd2+ {[%emt 0:05:16]} 49. Kb3 {[%emt 0:00:30]} Qd5+ {[%emt 0:00:08]} 50. c4 {[%emt 0:00:30]} bxc4+ {[%emt 0:00:13]} 51. Bxc4 {[%emt 0:00:00]} Qd1+ {[%emt 0:00:16]} 52. Ka2 {[%emt 0:00:00]} 1-0

[Event "25th Zadar Open 2018"]
[Site "Zadar"]
[Date "2018.12.17"]
[Round "4.20"]
[White "Nester, Ihor"]
[Black "Zelic, Mladen"]
[Result "1-0"]
[ECO "D90"]
[WhiteElo "2337"]
[BlackElo "2274"]
[Annotator "NA"]
[PlyCount "107"]
[EventDate "2018.12.15"]
[EventType "swiss"]
[EventCountry "CRO"]
[SourceTitle "playchess.com"]
[Source "ChessBase"]
[SourceQuality "1"]
[TimeControl "40/5400+30:1800+30"]

1. Nf3 {[%emt 0:06:30]} Nf6 {[%emt 0:00:30]} 2. c4 {[%emt 0:00:30]} g6 {[%emt 0:00:00]} 3. Nc3 {[%emt 0:00:30]} d5 {[%emt 0:01:00]} 4. cxd5 {[%emt 0:00:00]} Nxd5 {[%emt 0:00:00]} 5. Qb3 {[%emt 0:00:00]} Nb6 {[%emt 0:03:00]} 6. d4 {[%emt 0:00:30]} Bg7 {[%emt 0:00:30]} 7. Bf4 {[%emt 0:00:30]} O-O {[%emt 0:03:30]} 8. e3 {[%emt 0:04:30]} a5 {[%emt 0:05:30]} 9. Be2 {[%emt 0:00:30]} a4 {[%emt 0:03:30]} 10. Qc2 {[%emt 0:01:30]} Nc6 {[%emt 0:00:30]} 11. O-O {[%emt 0:01:30]} Bf5 {[%emt 0:12:30]} 12. Qc1 {[%emt 0:19:30]} Nd5 {[%emt 0:24:30]} 13. Nxd5 {[%emt 0:02:30]} Qxd5 {[%emt 0:00:30]} 14. Rd1 {[%emt 0:00:30]} h6 {[%emt 0:06:30]} 15. Qc4 {[%emt 0:14:30]} Qxc4 {[%emt 0:04:30]} 16. Bxc4 {[%emt 0:00:30]} Na5 {[%emt 0:00:00]} 17. Bb5 {[%emt 0:12:30]} c6 {[%emt 0:00:00]} 18. Bxa4 {[%emt 0:00:00]} Nc4 {[%emt 0:00:30]} 19. Bb3 {[%emt 0:00:00]} Nxb2 {[%emt 0:00:30]} 20. Rd2 {[%emt 0:00:30]} Na4 {[%emt 0:00:30]} 21. Rc1 {[%emt 0:01:30]} g5 {[%emt 0:04:30]} 22. Be5 {[%emt 0:01:30]} Rfd8 {[%emt 0:00:30]} 23. Rc4 {[%emt 0:06:30]} b5 {[%emt 0:18:13]} 24. Rxc6 {[%emt 0:01:30]} Rac8 {[%emt 0:00:19]} 25. Rxc8 {[%emt 0:00:30]} Rxc8 {[%emt 0:00:08]} 26. Bxg7 {[%emt 0:01:30]} Kxg7 {[%emt 0:00:09]} 27. h3 {[%emt 0:01:30]} Rc1+ {[%emt 0:02:41]} 28. Kh2 {[%emt 0:00:30]} Be4 {[%emt 0:02:14]} 29. Ne5 {[%emt 0:02:30]} f6 {[%emt 0:00:44]} 30. Nd3 {[%emt 0:00:40]} Rf1 {[%emt 0:02:07]} 31. f3 {[%emt 0:03:14]} Bg6 {[%emt 0:00:42]} 32. e4 {[%emt 0:02:03]} f5 {[%emt 0:01:05]} 33. e5 {[%emt 0:06:44]} f4 {[%emt 0:00:34]} 34. Nb4 {[%emt 0:00:44]} Re1 {[%emt 0:00:53]} 35. Nc6 {[%emt 0:00:58]} Kf8 {[%emt 0:00:50]} 36. d5 {[%emt 0:01:33]} Be8 {[%emt 0:00:44]} 37. e6 {[%emt 0:01:20]} Nc5 {[%emt 0:01:14]} 38. Rc2 {[%emt 0:03:26]} Nb7 {[%emt 0:01:07]} 39. Nxe7 {[%emt 0:02:30]} Nd6 {[%emt 0:00:01]} 40. Rc7 {[%emt 0:00:00]} b4 {[%emt 0:00:00]} 41. g4 {[%emt 0:20:25]} Nb5 {[%emt 0:03:45]} 42. d6 {[%emt 0:00:21]} Nxd6 {[%emt 0:15:22]} 43. Nf5 {[%emt 0:00:28]} Nxf5 {[%emt 0:01:26]} 44. gxf5 {[%emt 0:00:02]} Re2+ {[%emt 0:00:58]} 45. Kg1 {[%emt 0:00:18]} Bb5 {[%emt 0:00:47]} 46. h4 {[%emt 0:05:22]} g4 {[%emt 0:03:56]} 47. fxg4 {[%emt 0:00:06]} f3 {[%emt 0:00:20]} 48. Bc4 {[%emt 0:00:40]} Bxc4 {[%emt 0:04:32]} 49. Rxc4 {[%emt 0:00:05]} Ke7 {[%emt 0:00:27]} 50. Rxb4 {[%emt 0:00:21]} Rxa2 {[%emt 0:00:08]} 51. Rf4 {[%emt 0:02:14]} Rg2+ {[%emt 0:00:26]} 52. Kf1 {[%emt 0:00:11]} Kf6 {[%emt 0:00:30]} 53. Re4 {[%emt 0:00:21]} Ke7 {[%emt 0:00:47]} 54. f6+ {[%emt 0:00:15]} 1-0

[Event "25th Zadar Open 2018"]
[Site "Zadar"]
[Date "2018.12.17"]
[Round "4.21"]
[White "Ermeni, Avni"]
[Black "Spalir, Jernej"]
[Result "1/2-1/2"]
[ECO "D35"]
[WhiteElo "2183"]
[BlackElo "2336"]
[Annotator "NA"]
[PlyCount "93"]
[EventDate "2018.12.15"]
[EventType "swiss"]
[EventCountry "CRO"]
[SourceTitle "playchess.com"]
[Source "ChessBase"]
[SourceQuality "1"]
[TimeControl "40/5400+30:1800+30"]

1. d4 {[%emt 0:00:30]} d5 {[%emt 0:00:30]} 2. c4 {[%emt 0:00:00]} e6 {[%emt 0:00:00]} 3. Nc3 {[%emt 0:00:00]} Nf6 {[%emt 0:00:00]} 4. Nf3 {[%emt 0:00:30]} Be7 {[%emt 0:00:30]} 5. cxd5 {[%emt 0:02:30]} exd5 {[%emt 0:00:30]} 6. Bg5 {[%emt 0:01:30]} c6 {[%emt 0:01:30]} 7. e3 {[%emt 0:00:30]} Bf5 {[%emt 0:00:30]} 8. Bd3 {[%emt 0:05:30]} Bxd3 {[%emt 0:01:30]} 9. Qxd3 {[%emt 0:00:30]} Nbd7 {[%emt 0:00:30]} 10. O-O {[%emt 0:04:30]} O-O {[%emt 0:00:30]} 11. Nd2 {[%emt 0:05:30]} Re8 {[%emt 0:03:30]} 12. Rae1 {[%emt 0:15:30]} h6 {[%emt 0:13:30]} 13. Bxf6 {[%emt 0:06:30]} Nxf6 {[%emt 0:00:30]} 14. f3 {[%emt 0:04:30]} Qb6 {[%emt 0:06:30]} 15. Qc2 {[%emt 0:04:30]} Bd6 {[%emt 0:06:30]} 16. Kh1 {[%emt 0:01:30]} Rad8 {[%emt 0:00:30]} 17. g4 {[%emt 0:12:30]} Re6 {[%emt 0:06:30]} 18. Rf2 {[%emt 0:00:30]} Rde8 {[%emt 0:02:30]} 19. Nf1 {[%emt 0:00:30]} c5 {[%emt 0:04:30]} 20. Rd1 {[%emt 0:04:30]} cxd4 {[%emt 0:04:30]} 21. exd4 {[%emt 0:10:51]} Bf4 {[%emt 0:03:30]} 22. Rd3 {[%emt 0:06:34]} Re1 {[%emt 0:04:30]} 23. Kg2 {[%emt 0:00:38]} Qa6 {[%emt 0:04:30]} 24. Rd1 {[%emt 0:02:24]} R1e6 {[%emt 0:02:30]} 25. Qd3 {[%emt 0:01:36]} Qd6 {[%emt 0:02:30]} 26. Re2 {[%emt 0:00:27]} Qb4 {[%emt 0:01:30]} 27. Rxe6 {[%emt 0:01:35]} Rxe6 {[%emt 0:00:30]} 28. Rb1 {[%emt 0:01:12]} a6 {[%emt 0:01:30]} 29. Ne2 {[%emt 0:00:45]} Bb8 {[%emt 0:01:30]} 30. Neg3 {[%emt 0:01:49]} Qc4 {[%emt 0:02:30]} 31. Qxc4 {[%emt 0:01:36]} dxc4 {[%emt 0:00:30]} 32. Rc1 {[%emt 0:00:07]} b5 {[%emt 0:00:00]} 33. b3 {[%emt 0:00:06]} Bxg3 {[%emt 0:00:00]} 34. Kxg3 {[%emt 0:01:15]} cxb3 {[%emt 0:02:30]} 35. axb3 {[%emt 0:00:06]} Rd6 {[%emt 0:00:00]} 36. Rc8+ {[%emt 0:01:32]} Kh7 {[%emt 0:00:00]} 37. Rf8 {[%emt 0:00:11]} Kg6 {[%emt 0:01:30]} 38. Ne3 {[%emt 0:00:11]} Rxd4 {[%emt 0:01:30]} 39. Nf5 {[%emt 0:00:20]} Rd7 {[%emt 0:02:30]} 40. Ra8 {[%emt 0:00:00]} Rd3 {[%emt 0:00:00]} 41. Rxa6 {[%emt 0:02:15]} Rxb3 {[%emt 0:02:00]} 42. Rb6 {[%emt 0:05:30]} b4 {[%emt 0:02:30]} 43. h4 {[%emt 0:05:30]} Kh7 {[%emt 0:07:30]} 44. Rb7 {[%emt 0:02:30]} Kg8 {[%emt 0:05:30]} 45. Rb8+ {[%emt 0:00:30]} Kh7 {[%emt 0:00:30]} 46. Rb7 {[%emt 0:00:30]} Kg8 {[%emt 0:14:30]} 47. Rb8+ {[%emt 0:00:30]} 1/2-1/2

[Event "25th Zadar Open 2018"]
[Site "Zadar"]
[Date "2018.12.17"]
[Round "4.22"]
[White "Ivekovic, Bozidar"]
[Black "Samani, Yamac"]
[Result "1/2-1/2"]
[ECO "D74"]
[WhiteElo "2406"]
[BlackElo "2267"]
[Annotator "NA"]
[PlyCount "75"]
[EventDate "2018.12.15"]
[EventType "swiss"]
[EventCountry "CRO"]
[SourceTitle "playchess.com"]
[Source "ChessBase"]
[SourceQuality "1"]
[TimeControl "40/5400+30:1800+30"]

1. d4 {[%emt 0:15:30]} Nf6 {[%emt 0:00:30]} 2. c4 {[%emt 0:00:00]} g6 {[%emt 0:00:00]} 3. g3 {[%emt 0:00:00]} Bg7 {[%emt 0:00:00]} 4. Bg2 {[%emt 0:00:30]} O-O {[%emt 0:00:00]} 5. Nc3 {[%emt 0:00:00]} c5 {[%emt 0:01:00]} 6. Nf3 {[%emt 0:07:00]} d5 {[%emt 0:00:30]} 7. dxc5 {[%emt 0:17:30]} Qa5 {[%emt 0:01:30]} 8. cxd5 {[%emt 0:06:30]} Nxd5 {[%emt 0:00:30]} 9. Qxd5 {[%emt 0:01:30]} Bxc3+ {[%emt 0:00:00]} 10. Bd2 {[%emt 0:06:30]} Rd8 {[%emt 0:01:00]} 11. Bxc3 {[%emt 0:00:30]} Qxc3+ {[%emt 0:01:30]} 12. bxc3 {[%emt 0:01:30]} Rxd5 {[%emt 0:00:00]} 13. Rd1 {[%emt 0:01:30]} Rxc5 {[%emt 0:00:00]} 14. Rd8+ {[%emt 0:00:30]} Kg7 {[%emt 0:00:30]} 15. Nd4 {[%emt 0:00:30]} Nd7 {[%emt 0:53:30]} 16. Nb3 {[%emt 0:08:30]} Rxc3 {[%emt 0:02:30]} 17. Kd2 {[%emt 0:00:30]} Rc7 {[%emt 0:01:30]} 18. Rc1 {[%emt 0:02:30]} Rxc1 {[%emt 0:00:30]} 19. Kxc1 {[%emt 0:00:30]} Nb6 {[%emt 0:00:30]} 20. Nc5 {[%emt 0:00:30]} Bg4 {[%emt 0:04:30]} 21. Rxa8 {[%emt 0:01:30]} Nxa8 {[%emt 0:00:00]} 22. Bxb7 {[%emt 0:00:00]} Nb6 {[%emt 0:00:00]} 23. f3 {[%emt 0:01:00]} Bc8 {[%emt 0:00:30]} 24. Bxc8 {[%emt 0:01:30]} Nxc8 {[%emt 0:00:30]} 25. Kd2 {[%emt 0:00:00]} Nb6 {[%emt 0:04:30]} 26. Kc3 {[%emt 0:01:00]} Kf6 {[%emt 0:00:30]} 27. e4 {[%emt 0:04:30]} Ke5 {[%emt 0:01:30]} 28. f4+ {[%emt 0:01:30]} Kd6 {[%emt 0:00:00]} 29. Nd3 {[%emt 0:00:30]} f6 {[%emt 0:03:00]} 30. Kb4 {[%emt 0:01:30]} Kc6 {[%emt 0:03:30]} 31. Nb2 {[%emt 0:04:08]} Nd7 {[%emt 0:03:39]} 32. Nd3 {[%emt 0:02:58]} Kb6 {[%emt 0:00:25]} 33. Nb2 {[%emt 0:07:13]} Nc5 {[%emt 0:05:36]} 34. Nc4+ {[%emt 0:05:56]} Kc6 {[%emt 0:00:09]} 35. Na5+ {[%emt 0:00:38]} Kb6 {[%emt 0:00:26]} 36. Nc4+ {[%emt 0:00:04]} Kc6 {[%emt 0:00:04]} 37. Na5+ {[%emt 0:00:04]} Kb6 {[%emt 0:00:06]} 38. Nc4+ {[%emt 0:00:37]} 1/2-1/2

[Event "25th Zadar Open 2018"]
[Site "Zadar"]
[Date "2018.12.17"]
[Round "4.23"]
[White "Janzelj, Tim"]
[Black "Bosnjak, Petar"]
[Result "1/2-1/2"]
[ECO "A30"]
[WhiteElo "2395"]
[BlackElo "2255"]
[Annotator "NA"]
[PlyCount "95"]
[EventDate "2018.12.15"]
[EventType "swiss"]
[EventCountry "CRO"]
[SourceTitle "playchess.com"]
[Source "ChessBase"]
[SourceQuality "1"]
[TimeControl "40/5400+30:1800+30"]

1. Nf3 {[%emt 0:00:30]} Nf6 {[%emt 0:00:30]} 2. c4 {[%emt 0:00:00]} b6 {[%emt 0:00:30]} 3. g3 {[%emt 0:00:00]} Bb7 {[%emt 0:00:00]} 4. Bg2 {[%emt 0:00:30]} c5 {[%emt 0:00:00]} 5. O-O {[%emt 0:00:00]} g6 {[%emt 0:00:30]} 6. b3 {[%emt 0:05:00]} Bg7 {[%emt 0:00:30]} 7. Bb2 {[%emt 0:00:30]} O-O {[%emt 0:00:30]} 8. Nc3 {[%emt 0:02:30]} d5 {[%emt 0:28:30]} 9. Nxd5 {[%emt 0:02:30]} Nxd5 {[%emt 0:00:30]} 10. Bxg7 {[%emt 0:00:00]} Kxg7 {[%emt 0:00:30]} 11. cxd5 {[%emt 0:00:00]} Qxd5 {[%emt 0:01:30]} 12. d4 {[%emt 0:04:30]} cxd4 {[%emt 0:08:30]} 13. Ne1 {[%emt 0:31:30]} Qd7 {[%emt 0:01:30]} 14. Bxb7 {[%emt 0:00:30]} Qxb7 {[%emt 0:00:30]} 15. Qxd4+ {[%emt 0:00:30]} Kg8 {[%emt 0:00:30]} 16. Nf3 {[%emt 0:00:30]} Nd7 {[%emt 0:09:30]} 17. Rfd1 {[%emt 0:02:30]} Nc5 {[%emt 0:10:30]} 18. Qh4 {[%emt 0:13:30]} Ne6 {[%emt 0:03:30]} 19. Ne5 {[%emt 0:01:30]} Rad8 {[%emt 0:02:30]} 20. Qc4 {[%emt 0:05:30]} Rc8 {[%emt 0:05:30]} 21. Qa4 {[%emt 0:05:30]} Rfd8 {[%emt 0:04:52]} 22. Rxd8+ {[%emt 0:05:58]} Rxd8 {[%emt 0:00:39]} 23. Qc6 {[%emt 0:06:24]} Qxc6 {[%emt 0:01:55]} 24. Nxc6 {[%emt 0:00:02]} Rd7 {[%emt 0:00:14]} 25. Kf1 {[%emt 0:02:23]} Rc7 {[%emt 0:00:39]} 26. Nb4 {[%emt 0:00:29]} Rd7 {[%emt 0:02:01]} 27. Ke1 {[%emt 0:01:52]} Kf8 {[%emt 0:01:20]} 28. Rc1 {[%emt 0:00:26]} Nc5 {[%emt 0:00:42]} 29. Rc4 {[%emt 0:02:09]} Rd6 {[%emt 0:04:17]} 30. Nc2 {[%emt 0:00:40]} Ke8 {[%emt 0:01:25]} 31. Nd4 {[%emt 0:00:44]} a6 {[%emt 0:07:10]} 32. b4 {[%emt 0:03:12]} Ne6 {[%emt 0:00:38]} 33. Nxe6 {[%emt 0:00:32]} Rxe6 {[%emt 0:00:40]} 34. Rc8+ {[%emt 0:01:43]} Kd7 {[%emt 0:00:05]} 35. Ra8 {[%emt 0:00:42]} Kc6 {[%emt 0:01:54]} 36. a4 {[%emt 0:00:50]} Re4 {[%emt 0:01:25]} 37. Rxa6 {[%emt 0:01:01]} Rxb4 {[%emt 0:00:05]} 38. Ra7 {[%emt 0:00:08]} Kd6 {[%emt 0:00:59]} 39. Kd2 {[%emt 0:00:42]} Rb2+ {[%emt 0:00:28]} 40. Kd3 {[%emt 0:00:00]} Ra2 {[%emt 0:00:00]} 41. f4 {[%emt 0:04:03]} f5 {[%emt 0:03:02]} 42. Ra8 {[%emt 0:01:30]} e5 {[%emt 0:07:30]} 43. Ra7 {[%emt 0:06:30]} exf4 {[%emt 0:06:31]} 44. gxf4 {[%emt 0:00:30]} Kd5 {[%emt 0:04:15]} 45. Rd7+ {[%emt 0:02:30]} Kc5 {[%emt 0:00:26]} 46. Rc7+ {[%emt 0:02:55]} Kd5 {[%emt 0:00:08]} 47. Rd7+ {[%emt 0:08:27]} Kc5 {[%emt 0:00:11]} 48. Rc7+ {[%emt 0:00:04]} 1/2-1/2